bitfinex-derivatives/quotes_SOLF0:USTF0_20241215
["timestamp","ask_amount","ask_price","bid_price","bid_amount"]
[1734242652525,2.2719,220.15,220.12,3.21876366]
[1734242652824,2.2719,220.15,220.11,2.2723]
[1734242653025,2.2719,220.15,220.12,3.21861412]
[1734242653221,2.2719,220.15,220.11,2.2723]
[1734242653426,2.2719,220.15,220.12,3.2188673]
[1734242653622,2.2719,220.15,220.11,2.2723]
[1734242653819,2.2719,220.15,220.12,3.21886495]
[1734242654018,2.2719,220.15,220.11,2.2723]
[1734242654219,2.2719,220.15,220.12,3.21886495]
[1734242654427,2.2719,220.15,220.11,2.2723]
[1734242654627,2.2719,220.15,220.07,1.65373]
[1734242654628,2.02,220.14,220.12,3.21913887]
[1734242654828,2.2721,220.13,220.09,7.00686581]
[1734242655030,2.2721,220.13,220.1,3.21945138]
[1734242655231,2.2721,220.13,220.11,3.21945138]
[1734242655528,2.2721,220.13,220.09,9.27936581]
[1734242655825,2.2721,220.13,220.1,3.2194634]
[1734242656022,2.2721,220.13,220.11,3.2194634]
[1734242656221,2.2721,220.13,220.09,5.34354158]
[1734242656431,2.2721,220.13,220.1,3.21943297]
[1734242656625,2.2721,220.13,220.09,5.34354158]
[1734242656825,2.2721,220.13,220.1,3.21944191]
[1734242657026,2.2721,220.13,220.09,5.34354158]
[1734242657226,2.2721,220.13,220.1,3.21944191]
[1734242657429,2.2721,220.13,220.09,5.34354158]
[1734242657620,2.2721,220.13,220.1,3.21920105]
[1734242657824,2.2721,220.13,220.09,5.34354158]
[1734242658020,2.2721,220.13,220.1,3.2191987]
[1734242658225,2.2721,220.13,220.09,5.34354158]
[1734242658423,2.2721,220.13,220.1,3.21878948]
[1734242658726,2.2721,220.13,220.09,5.34354158]
[1734242659227,2.2721,220.13,220.1,3.21895481]
[1734242659525,2.2721,220.13,220.09,5.34354158]
[1734242659731,2.2721,220.13,220.1,3.21857988]
[1734242659933,2.2721,220.13,220.09,5.34354158]
[1734242660231,2.2721,220.13,220.1,3.21857988]
[1734242660424,2.2721,220.13,220.09,5.34354158]
[1734242660627,2.2721,220.13,220.1,3.21819473]
[1734242660928,2.2721,220.13,220.09,5.34354158]
[1734242661129,2.2721,220.13,220.1,3.21819473]
[1734242661331,2.2721,220.13,220.09,5.34354158]
[1734242661529,2.2721,220.13,220.1,3.21782743]
[1734242661731,2.2721,220.13,220.09,5.34354158]
[1734242661930,2.2721,220.13,220.1,3.21782743]
[1734242662132,2.2721,220.13,220.09,5.34354158]
[1734242662332,2.2721,220.13,220.1,3.21770961]
[1734242662533,2.2721,220.13,220.09,5.34354158]
[1734242662831,2.2721,220.13,220.1,3.21748829]
[1734242663027,2.2721,220.13,220.09,5.34354158]
[1734242663232,2.2721,220.13,220.1,3.21748452]
[1734242663533,2.2721,220.13,220.09,5.34354158]
[1734242663733,2.2721,220.13,220.1,3.21717224]
[1734242663934,2.2721,220.13,220.09,5.34354158]
[1734242664133,2.2721,220.13,220.1,3.21717224]
[1734242664435,2.2721,220.13,220.09,5.34354158]
[1734242664634,2.2721,220.13,220.1,3.21687815]
[1734242664933,2.2721,220.13,220.09,5.34354158]
[1734242665132,2.2721,220.13,220.1,3.21688822]
[1734242665331,2.2721,220.13,220.09,5.34354158]
[1734242665635,2.2721,220.13,220.1,3.21660993]
[1734242665827,2.2721,220.13,220.09,5.34354158]
[1734242666035,2.2721,220.13,220.1,3.21659987]
[1734242666229,2.2721,220.13,220.09,5.34354158]
[1734242669342,2.2721,220.13,220.08,9.27946581]
[1734242669544,2.2721,220.13,220.09,3.21567445]
[1734242669744,2.2721,220.13,220.08,9.27946581]
[1734242670043,2.2721,220.13,220.09,3.21567445]
[1734242670246,2.2721,220.13,220.08,9.27946581]
[1734242670447,2.2721,220.13,220.09,3.21547533]
[1734242670641,2.2721,220.13,220.08,9.27946581]
[1734242670941,2.2721,220.13,220.09,3.21549116]
[1734242671142,2.2721,220.13,220.08,9.27946581]
[1734242671346,2.2721,220.13,220.09,3.21534613]
[1734242671545,2.2721,220.13,220.08,9.27946581]
[1734242671744,2.2721,220.13,220.09,3.21528145]
[1734242671944,2.2721,220.13,220.08,9.27946581]
[1734242672146,2.2721,220.13,220.09,3.21527936]
[1734242672348,2.2721,220.13,220.08,9.27946581]
[1734242672547,2.2721,220.13,220.09,3.21511374]
[1734242672746,2.2721,220.13,220.1,5.50008541]
[1734242674645,2.02,220.14,220.1,5.50008541]
[1734242676349,4.2921,220.14,220.1,5.50008541]
[1734242680753,4.2921,220.14,220.1,7.77248541]
[1734242682153,51.98,220.29,220.12,2.2722]
[1734242682353,17.21824005,220.28,220.12,7.00686581]
[1734242682548,7.00686581,220.17,220.1,5.50008541]
[1734242682755,7.00686581,220.17,220.12,2.2722]
[1734242683654,2.2718,220.16,220.12,2.2722]
[1734242684348,2.0,220.18,220.12,9.27906581]
[1734242684550,2.0,220.19,220.13,2.2721]
[1734242684851,9.00686581,220.19,220.13,2.2721]
[1734242685653,2.2716,220.18,220.13,2.2721]
[1734242693860,2.0,220.19,220.15,2.2719]
[1734242695159,2.2714,220.2,220.14,7.00686581]
[1734242695360,11.27816581,220.21,220.16,2.2718]
[1734242700267,2.2714,220.2,220.16,2.2718]
[1734242701658,34.2478862,220.28,220.16,7.00686581]
[1734242701867,2.2712,220.23,220.18,2.2716]
[1734242702066,2.0,220.22,220.18,2.2716]
[1734242702365,4.2712,220.22,220.18,2.2716]
[1734242704665,2.0,220.22,220.16,7.00686581]
[1734242704868,2.0,220.22,220.19,2.2715]
[1734242705165,2.0,220.22,220.17,7.00686581]
[1734242705769,4.2711,220.23,220.12,2.0]
[1734242705970,4.2711,220.23,220.17,7.00686581]
[1734242706364,4.2711,220.23,220.15,2.2719]
[1734242706560,7.00686581,220.22,220.16,3.21695586]
[1734242706762,7.00686581,220.22,220.14,7.00686581]
[1734242706961,7.00686581,220.22,220.15,3.21700073]
[1734242707167,2.2715,220.19,220.14,2.272]
[1734242707373,4.2715,220.19,220.14,9.27886581]
[1734242707871,2.2716,220.18,220.14,2.272]
[1734242711762,4.2715,220.19,220.14,2.272]
[1734242712371,4.2715,220.19,220.14,9.27886581]
[1734242715366,7.00686581,220.17,220.1,5.50008541]
[1734242715567,7.00686581,220.17,220.11,3.21754524]
[1734242715769,7.00686581,220.17,220.1,12.50695122]
[1734242715967,2.2721,220.14,220.1,12.50695122]
[1734242716167,4.2721,220.14,220.1,12.50695122]
[1734242720972,2.0,220.14,220.1,12.50695122]
[1734242724169,2.0,220.14,220.1,14.77935122]
[1734242725772,4.272,220.14,220.1,14.77935122]
[1734242730473,2.0,220.14,220.1,14.77935122]
[1734242735379,2.0,220.14,220.11,2.2723]
[1734242735585,2.0,220.17,220.1,12.50695122]
[1734242735877,2.0,220.16,220.11,7.00686581]
[1734242736478,9.00686581,220.17,220.13,2.272]
[1734242737174,9.00686581,220.17,220.11,7.00686581]
[1734242737373,9.00686581,220.17,220.14,2.272]
[1734242738784,9.27876581,220.15,220.1,5.50008541]
[1734242740581,9.27876581,220.15,220.11,2.2723]
[1734242740978,9.27876581,220.15,220.1,5.50008541]
[1734242740979,7.00686581,220.15,220.07,1.4388]
[1734242741180,7.00686581,220.11,220.04,29.25735957]
[1734242741383,9.00686581,220.11,220.04,36.26422538]
[1734242741784,9.00686581,220.11,220.05,0.27972]
[1734242741984,2.2728,220.07,220.05,0.27972]
[1734242746293,7.00686581,220.09,220.05,0.27972]
[1734242746495,2.2729,220.06,220.05,0.27972]
[1734242747793,9.00686581,220.07,219.96,2.2739]
[1734242747794,2.2734,220.01,219.96,2.2739]
[1734242748095,9.00686581,220.0,219.96,2.2739]
[1734242748897,9.00686581,220.0,219.95,1.4076]
[1734242749093,9.00686581,220.0,219.98,5.59294613]
[1734242750697,11.28036581,220.0,219.95,3.6816]
[1734242751097,11.28036581,220.0,219.95,1.4076]
[1734242753493,9.00686581,220.0,219.95,6.8176271]
[1734242753698,9.00686581,220.0,219.93,7.00686581]
[1734242754601,2.2738,219.97,219.93,7.00686581]
[1734242756000,2.2738,219.97,219.92,2.2743]
[1734242756301,2.2738,219.97,219.93,7.00686581]
[1734242756499,2.2738,219.97,219.92,2.2743]
[1734242756699,2.2738,219.97,219.93,7.00686581]
[1734242756895,2.2741,219.94,219.89,2.2746]
[1734242757094,4.2741,219.94,219.89,9.28146581]
[1734242757299,4.2741,219.94,219.89,2.2746]
[1734242757500,2.2743,219.92,219.87,10.74136581]
[1734242758603,9.00686581,219.94,219.87,10.74136581]
[1734242758604,2.2742,219.93,219.87,10.74136581]
[1734242759198,2.0,219.94,219.88,5.45816759]
[1734242759400,11.28106581,219.94,219.89,7.00686581]
[1734242760608,11.28106581,219.94,219.89,9.28146581]
[1734242761908,9.00686581,219.94,219.9,2.2745]
[1734242762107,2.0,219.96,219.93,7.00686581]
[1734242762409,2.0,219.98,219.93,7.00686581]
[1734242762711,9.00686581,219.98,219.93,7.00686581]
[1734242763101,2.0,219.98,219.93,7.00686581]
[1734242764312,9.00686581,219.98,219.93,9.28096581]
[1734242765206,9.00686581,219.98,219.94,2.2741]
[1734242769310,2.0,220.01,219.95,7.00686581]
[1734242770116,4.2734,220.01,219.95,7.00686581]
[1734242771214,4.2734,220.01,219.96,2.2738]
[1734242771419,2.0,220.01,219.95,7.00686581]
[1734242771614,7.00686581,220.02,219.95,7.00686581]
[1734242771819,2.0,220.01,219.95,7.00686581]
[1734242772612,2.0,220.01,219.97,7.00686581]
[1734242772818,2.0,220.02,219.97,7.00686581]
[1734242773021,2.0,220.03,219.99,7.00686581]
[1734242773624,2.0,220.03,219.99,9.28036581]
[1734242774121,2.0,220.03,219.99,2.2735]
[1734242776122,2.0,220.03,220.01,2.2734]
[1734242777024,2.0,220.05,220.01,2.2734]
[1734242779631,4.273,220.05,220.0,2.2735]
[1734242780127,2.273,220.05,220.0,2.2735]
[1734242780324,2.0,220.05,219.99,12.46582629]
[1734242781327,2.0,220.05,220.0,2.2734]
[1734242781523,7.00686581,220.02,219.94,1.515]
[1734242781828,2.0,220.01,219.94,8.52186581]
[1734242782729,4.2734,220.01,219.96,2.2738]
[1734242783430,7.00686581,220.0,219.96,2.2738]
[1734242787034,7.00686581,220.0,219.97,2.2738]
[1734242787333,2.0,220.01,219.97,2.2738]
[1734242789935,2.0,220.01,219.96,7.00686581]
[1734242790731,2.0,220.01,220.0,2.2735]
[1734242793135,7.00686581,220.04,220.0,2.2735]
[1734242793437,2.0,220.03,220.0,2.2735]
[1734242793838,7.00686581,220.04,220.0,2.2735]
[1734242794046,2.0,220.03,220.0,2.2735]
[1734242794241,2.0,220.04,220.0,2.2735]
[1734242794445,4.2731,220.04,219.99,2.2736]
[1734242794839,7.00686581,220.03,219.99,2.2736]
[1734242796236,7.00686581,220.03,219.98,7.00686581]
[1734242796542,4.2731,220.04,219.89,2.9613]
[1734242796543,7.00686581,219.99,219.89,2.9613]
[1734242796735,2.0,219.98,219.93,7.00686581]
[1734242797641,2.0,219.98,219.95,2.274]
[1734242798938,2.0,219.98,219.95,7.75062885]
[1734242803638,2.0,219.98,219.96,2.2738]
[1734242811146,9.28026581,220.01,219.96,2.2738]
[1734242811339,2.0,220.0,219.96,2.2738]
[1734242812942,2.7385,220.08,219.97,10.22965552]
[1734242813148,7.00686581,220.05,219.98,3.22252539]
[1734242813347,7.00686581,220.05,219.97,7.00686581]
[1734242813649,2.0,220.04,219.97,7.00686581]
[1734242813850,2.0,220.04,219.98,3.22259651]
[1734242814045,2.0,220.04,219.97,7.00686581]
[1734242814351,2.0,220.04,220.0,2.2734]
[1734242816050,2.2739,219.96,219.9,3.7728]
[1734242816253,2.0,219.95,219.91,10.23004999]
[1734242816447,2.0,219.95,219.92,3.22318418]
[1734242816655,2.0,219.95,219.91,7.00686581]
[1734242816957,2.0,219.95,219.92,3.22323668]
[1734242819158,2.0,219.95,219.93,2.2741]
[1734242819457,2.0,219.95,219.92,10.23010249]
[1734242820558,2.0,219.95,219.93,2.2742]
[1734242822955,2.0,219.95,219.91,5.44481373]
[1734242824658,4.274,219.95,219.91,5.44481373]
[1734242833168,2.0,219.95,219.91,12.45167954]
[1734242833770,2.0,219.95,219.92,2.2743]
[1734242839577,2.0,219.95,219.91,5.44481373]
[1734242839771,2.0,219.95,219.92,3.22149684]
[1734242839978,2.0,219.95,219.91,5.44481373]
[1734242840272,2.0,219.95,219.92,3.22195905]
[1734242840576,4.274,219.95,219.91,5.44481373]
[1734242840776,4.274,219.95,219.92,3.22201129]
[1734242840975,4.274,219.95,219.91,5.44481373]
[1734242841177,4.274,219.95,219.92,3.22200728]
[1734242841378,4.274,219.95,219.91,5.44481373]
[1734242841573,4.274,219.95,219.92,3.22261006]
[1734242841780,4.274,219.95,219.91,5.44481373]
[1734242841977,4.274,219.95,219.92,3.22261006]
[1734242842276,4.274,219.95,219.91,5.44481373]
[1734242842478,4.274,219.95,219.92,3.22260215]
[1734242842778,4.274,219.95,219.91,5.44481373]
[1734242842979,4.274,219.95,219.92,3.22260215]
[1734242843179,4.274,219.95,219.91,5.44481373]
[1734242843480,4.274,219.95,219.92,3.22253316]
[1734242843674,4.274,219.95,219.9,2.2744]
[1734242843875,4.274,219.95,219.91,3.22258136]
[1734242844072,4.274,219.95,219.92,3.22258136]
[1734242844273,4.274,219.95,219.9,2.2744]
[1734242844479,4.274,219.95,219.91,3.22264235]
[1734242844679,4.274,219.95,219.9,2.2744]
[1734242844880,4.274,219.95,219.91,3.22262989]
[1734242845081,4.274,219.95,219.92,3.22262989]
[1734242845380,4.274,219.95,219.9,2.2744]
[1734242845578,4.274,219.95,219.91,3.22269301]
[1734242845775,4.274,219.95,219.92,3.22269301]
[1734242845979,4.274,219.95,219.9,2.2744]
[1734242846179,4.274,219.95,219.91,3.22269301]
[1734242846377,4.274,219.95,219.92,3.22269301]
[1734242846580,4.274,219.95,219.9,2.2744]
[1734242846779,4.274,219.95,219.91,3.22275105]
[1734242846984,4.274,219.95,219.92,3.22275105]
[1734242847281,4.274,219.95,219.91,5.4549408]
[1734242847481,4.274,219.95,219.92,3.2227384]
[1734242847683,4.274,219.95,219.91,5.4549408]
[1734242848185,4.274,219.95,219.92,3.22274076]
[1734242848380,4.274,219.95,219.91,5.4549408]
[1734242848582,4.274,219.95,219.92,3.22277529]
[1734242848783,4.274,219.95,219.91,5.4549408]
[1734242848978,4.274,219.95,219.92,3.22278775]
[1734242849284,4.274,219.95,219.91,5.4549408]
[1734242849485,4.274,219.95,219.92,3.22283178]
[1734242849677,4.274,219.95,219.91,5.4549408]
[1734242849877,4.274,219.95,219.92,3.22281933]
[1734242850081,4.274,219.95,219.91,5.4549408]
[1734242850282,4.274,219.95,219.92,3.22282607]
[1734242850483,4.274,219.95,219.91,5.4549408]
[1734242850682,4.274,219.95,219.92,3.22290521]
[1734242850986,4.274,219.95,219.91,5.4549408]
[1734242851181,4.274,219.95,219.92,3.22291766]
[1734242851383,4.274,219.95,219.91,5.4549408]
[1734242851576,4.274,219.95,219.92,3.22301061]
[1734242851781,4.274,219.95,219.91,5.4549408]
[1734242852182,4.274,219.95,219.92,3.22299576]
[1734242852785,4.274,219.95,219.91,5.4549408]
[1734242852986,4.274,219.95,219.92,3.22308406]
[1734242853288,4.274,219.95,219.91,5.4549408]
[1734242853488,4.274,219.95,219.92,3.22315908]
[1734242853688,4.274,219.95,219.91,5.4549408]
[1734242853889,4.274,219.95,219.92,3.22314892]
[1734242854183,4.274,219.95,219.91,7.7293408]
[1734242854391,4.274,219.95,219.92,3.22323759]
[1734242854584,4.274,219.95,219.91,7.7293408]
[1734242854890,4.274,219.95,219.92,3.22324769]
[1734242855081,4.274,219.95,219.91,7.7293408]
[1734242855391,4.274,219.95,219.92,3.22331746]
[1734242855588,4.274,219.95,219.91,7.7293408]
[1734242855793,4.274,219.95,219.92,3.2234002]
[1734242855983,4.274,219.95,219.91,7.7293408]
[1734242856286,4.274,219.95,219.92,3.2234002]
[1734242856482,4.274,219.95,219.91,7.7293408]
[1734242856690,4.274,219.95,219.92,3.22356675]
[1734242856885,4.274,219.95,219.91,7.7293408]
[1734242857081,4.274,219.95,219.92,3.22356675]
[1734242857282,4.274,219.95,219.91,7.7293408]
[1734242857492,4.274,219.95,219.92,3.22385651]
[1734242857691,4.274,219.95,219.91,7.7293408]
[1734242857990,4.274,219.95,219.92,3.22385651]
[1734242858186,4.274,219.95,219.93,3.22481468]
[1734242858382,4.274,219.95,219.91,7.7293408]
[1734242858887,4.274,219.95,219.92,3.2248803]
[1734242859089,4.274,219.95,219.91,7.7293408]
[1734242859289,4.274,219.95,219.92,3.22646876]
[1734242859491,4.274,219.95,219.93,3.22646876]
[1734242859792,4.274,219.95,219.91,7.7293408]
[1734242859992,4.274,219.95,219.92,3.22650825]
[1734242860189,4.274,219.95,219.91,7.7293408]
[1734242860190,4.274,219.95,219.93,3.22650825]
[1734242860390,4.274,219.95,219.94,3.22650825]
[1734242861687,4.274,219.95,219.94,3.22971488]
[1734242865097,4.274,219.95,219.94,3.22973759]
[1734242865796,4.274,219.95,219.92,2.2743]
[1734242866100,7.00686581,219.94,219.86,8.49886581]
[1734242866301,7.00686581,219.94,219.87,3.23017804]
[1734242866596,7.00686581,219.94,219.88,3.23017804]
[1734242866798,7.00686581,219.94,219.89,3.23017804]
[1734242867095,7.00686581,219.94,219.86,8.49886581]
[1734242867295,7.00686581,219.94,219.87,3.22966667]
[1734242867493,2.2743,219.92,219.88,3.22966667]
[1734242867799,2.0,219.91,219.87,2.2748]
[1734242867999,2.0,219.91,219.88,7.00686581]
[1734242868899,2.0,219.91,219.88,12.44919679]
[1734242869593,2.0,219.91,219.89,2.2746]
[1734242870501,2.0,219.91,219.86,8.49886581]
[1734242870699,2.0,219.91,219.87,3.22523125]
[1734242870895,2.0,219.91,219.88,3.22523125]
[1734242871101,2.0,219.91,219.86,8.49886581]
[1734242871299,2.0,219.91,219.87,3.22509419]
[1734242871603,2.0,219.91,219.88,3.22509419]
[1734242871794,2.0,219.91,219.87,2.2748]
[1734242872002,2.0,219.91,219.88,10.2314389]
[1734242872301,2.0,219.91,219.89,5.49907309]
[1734242872501,2.0,219.91,219.89,2.2745]
[1734242882611,2.0,219.91,219.87,5.39536726]
[1734242882818,9.00686581,219.91,219.87,5.39536726]
[1734242885617,9.00686581,219.91,219.85,8.47306581]
[1734242885618,9.00686581,219.91,219.84,7.00686581]
[1734242885812,9.00686581,219.91,219.85,3.22236652]
[1734242886016,9.00686581,219.91,219.84,7.00686581]
[1734242886225,2.2747,219.88,219.85,3.22236752]
[1734242886408,7.00686581,219.87,219.8,1.80569]
[1734242886614,9.00686581,219.87,219.82,3.22227244]
[1734242886811,9.00686581,219.87,219.81,10.77256581]
[1734242887010,11.28166581,219.87,219.82,3.22234784]
[1734242887217,11.28166581,219.87,219.81,3.7657]
[1734242887413,7.00686581,219.85,219.8,1.80569]
[1734242887608,9.28196581,219.85,219.81,3.22126063]
[1734242887813,9.28196581,219.85,219.8,1.80569]
[1734242888117,9.28196581,219.85,219.81,3.22128011]
[1734242888318,9.28196581,219.85,219.8,1.80569]
[1734242888812,9.28196581,219.85,219.81,3.22013974]
[1734242889012,9.28196581,219.85,219.8,1.80569]
[1734242889320,2.2752,219.84,219.8,1.80569]
[1734242889519,2.0,219.83,219.8,0.35069]
[1734242889820,9.00686581,219.83,219.8,0.35069]
[1734242890023,7.00686581,219.81,219.8,0.35069]
[1734242892022,2.2757,219.79,219.74,7.00686581]
[1734242892224,7.00686581,219.77,219.73,1.4345]
[1734242892527,7.00686581,219.77,219.71,7.00686581]
[1734242892719,7.00686581,219.77,219.73,5.5805156]
[1734242892917,7.00686581,219.77,219.71,2.2765]
[1734242893124,7.00686581,219.77,219.72,7.00686581]
[1734242893320,7.00686581,219.77,219.71,2.2765]
[1734242893524,7.00686581,219.77,219.7,9.28336581]
[1734242893725,7.00686581,219.77,219.71,3.21213354]
[1734242894029,7.00686581,219.77,219.7,9.28336581]
[1734242894730,9.28276581,219.77,219.7,9.28336581]
[1734242895122,9.28276581,219.77,219.7,9.80389581]
[1734242896930,9.28276581,219.77,219.72,2.2763]
[1734242896931,7.00686581,219.77,219.72,2.2763]
[1734242897235,9.00686581,219.78,219.72,5.49185741]
[1734242897828,9.00686581,219.78,219.71,7.00686581]
[1734242898428,11.28266581,219.78,219.71,9.28336581]
[1734242900432,2.276,219.76,219.7,2.79713]
[1734242900627,2.276,219.76,219.7,9.80399581]
[1734242900826,9.00686581,219.78,219.7,9.80399581]
[1734242901025,2.276,219.76,219.7,5.96950745]
[1734242901225,7.00686581,219.76,219.7,0.52053]
[1734242902431,2.2762,219.74,219.7,0.52053]
[1734242902634,2.0,219.73,219.7,0.52053]
[1734242904937,2.2765,219.71,219.7,0.52053]
[1734242905637,2.2771,219.65,219.59,2.2777]
[1734242905833,2.2771,219.65,219.61,7.00686581]
[1734242905834,2.0,219.64,219.61,7.00686581]
[1734242906330,2.2773,219.63,219.61,7.00686581]
[1734242906533,2.0,219.64,219.61,7.00686581]
[1734242907129,2.0,219.64,219.59,2.2777]
[1734242907438,2.0,219.64,219.6,7.00686581]
[1734242908136,2.2772,219.65,219.6,7.00686581]
[1734242908335,2.0,219.64,219.6,7.00686581]
[1734242908534,1.5202,219.72,219.61,2.2775]
[1734242908535,2.0,219.63,219.61,2.2775]
[1734242908832,2.0,219.62,219.52,4.4236]
[1734242909034,4.2775,219.61,219.55,9.28496581]
[1734242909237,2.0,219.61,219.55,9.28496581]
[1734242909438,2.0,219.6,219.55,9.28496581]
[1734242909939,2.0,219.6,219.56,5.39112313]
[1734242910343,7.00686581,219.62,219.56,5.39112313]
[1734242910537,2.0,219.61,219.56,7.66912313]
[1734242912437,2.0,219.61,219.56,5.39112313]
[1734242913830,1.5362,219.7,219.56,5.39112313]
[1734242914032,9.28436581,219.61,219.55,2.2781]
[1734242914341,2.0,219.6,219.55,2.2781]
[1734242914938,1.5362,219.7,219.54,7.00686581]
[1734242915137,7.00686581,219.66,219.54,5.50878229]
[1734242915437,7.00686581,219.66,219.6,7.00686581]
[1734242915934,2.0,219.65,219.6,7.00686581]
[1734242916740,2.2772,219.64,219.54,5.50878229]
[1734242916934,2.2772,219.64,219.59,7.00686581]
[1734242917739,4.2773,219.63,219.59,7.00686581]
[1734242918642,2.0,219.62,219.59,9.28456581]
[1734242918840,43.06765094,219.83,219.61,7.00686581]
[1734242919145,7.00686581,219.68,219.61,7.00686581]
[1734242919742,2.0,219.67,219.61,7.00686581]
[1734242920044,7.0571681,219.72,219.63,7.00686581]
[1734242920045,1.5202,219.72,219.63,7.00686581]
[1734242920244,2.0,219.71,219.65,7.00686581]
[1734242920545,2.0,219.7,219.65,7.00686581]
[1734242921043,2.0,219.7,219.67,7.00686581]
[1734242921544,2.0,219.7,219.68,2.2767]
[1734242925954,2.0,219.7,219.67,2.2769]
[1734242930357,2.0,219.7,219.66,7.00686581]
[1734242930551,5.46199538,219.79,219.68,2.2768]
[1734242930853,9.00686581,219.78,219.7,7.00686581]
[1734242931054,9.00686581,219.78,219.72,2.2764]
[1734242931255,9.00686581,219.78,219.72,9.28326581]
[1734242932656,11.28266581,219.78,219.73,2.2763]
[1734242934049,2.0,219.78,219.74,9.28306581]
[1734242936661,2.2757,219.79,219.74,9.28306581]
[1734242936857,2.0,219.78,219.74,9.28306581]
[1734242938063,2.0,219.78,219.74,7.00686581]
[1734242938465,2.0,219.78,219.69,4.4146]
[1734242938466,2.2753,219.83,219.77,2.2758]
[1734242938763,2.0,219.82,219.77,2.2758]
[1734242940358,2.0,219.82,219.76,7.00686581]
[1734242940761,7.00686581,219.84,219.76,7.00686581]
[1734242940961,1.5402,219.91,219.76,7.00686581]
[1734242940962,2.0,219.83,219.76,7.00686581]
[1734242941167,2.0,219.82,219.76,7.00686581]
[1734242941665,2.0,219.82,219.78,2.2757]
[1734242945967,2.0,219.82,219.81,2.2754]
[1734242946169,2.0,219.84,219.81,2.2754]
[1734242946673,2.0,219.86,219.82,2.2753]
[1734242946974,7.00686581,219.87,219.8,7.00686581]
[1734242947175,2.0,219.86,219.82,7.00686581]
[1734242947373,2.0,219.86,219.83,2.2752]
[1734242949378,2.0,219.87,219.83,2.2752]
[1734242951884,2.0,219.87,219.82,7.00686581]
[1734242952081,4.2748,219.87,219.82,9.28216581]
[1734242952875,4.2748,219.87,219.82,2.2753]
[1734242953083,4.2748,219.87,219.82,9.28216581]
[1734242954178,2.0,219.87,219.82,9.28216581]
[1734242954488,2.0,219.87,219.84,7.00686581]
[1734242955084,2.0,219.88,219.84,7.00686581]
[1734242956590,2.0,219.88,219.84,9.28196581]
[1734242957689,2.0,219.91,219.86,7.00686581]
[1734242957988,2.0,219.94,219.89,7.00686581]
[1734242958185,2.0,219.94,219.91,7.00686581]
[1734242958387,7.00686581,219.98,219.91,7.00686581]
[1734242958583,1.4256,220.03,219.91,7.00686581]
[1734242958783,7.00686581,219.99,219.91,7.00686581]
[1734242958981,7.00686581,219.98,219.91,7.00686581]
[1734242959186,2.0,219.97,219.91,7.00686581]
[1734242959685,4.2738,219.97,219.92,2.2743]
[1734242960489,2.0,219.97,219.91,7.00686581]
[1734242960696,2.0,219.97,219.93,9.28106581]
[1734242961892,2.0,219.97,219.93,2.2742]
[1734242962087,4.2738,219.97,219.91,9.28116581]
[1734242964597,9.28076581,219.96,219.91,7.00686581]
[1734242966196,9.28076581,219.96,219.84,2.0]
[1734242966197,2.274,219.95,219.84,2.0]
[1734242966393,2.274,219.95,219.89,7.00686581]
[1734242967798,7.00686581,219.96,219.89,7.00686581]
[1734242967997,2.2741,219.94,219.89,7.00686581]
[1734242968198,2.0,219.93,219.89,7.00686581]
[1734242968992,2.0,219.93,219.89,9.28146581]
[1734242970704,2.0,219.93,219.89,14.85187448]
[1734242973707,2.0,219.93,219.89,7.00686581]
[1734242973906,2.0,219.93,219.87,7.00686581]
[1734242974205,7.00686581,219.92,219.86,2.2749]
[1734242974407,2.2744,219.91,219.85,7.00686581]
[1734242975099,2.2744,219.91,219.86,5.59632831]
[1734242978412,7.00686581,219.92,219.85,7.00686581]
[1734242979106,2.2747,219.89,219.85,7.00686581]
[1734242979308,2.0,219.88,219.85,7.00686581]
[1734242980100,2.0,219.88,219.85,9.28186581]
[1734242981508,2.0,219.88,219.87,7.00686581]
[1734242989814,2.0,219.88,219.85,9.28186581]